bitfinex/quotes_SOLUSD_20250525
["timestamp","ask_amount","ask_price","bid_price","bid_amount"]
[1748143847635,26.0,173.1,173.09,119.72]
[1748143848839,34.44035419,173.12,173.09,119.72]
[1748143849015,34.44035419,173.12,173.09,36.74]
[1748143849436,8.44035419,173.11,173.09,36.74]
[1748143851239,26.0,173.09,173.08,34.58]
[1748143851447,26.0,173.09,173.08,117.08]
[1748143852643,8.44035419,173.1,173.08,117.08]
[1748143852943,8.44035419,173.09,173.08,117.08]
[1748143853441,8.44035419,173.1,173.08,117.08]
[1748143854546,8.44035419,173.1,173.08,34.58]
[1748143856341,8.44035419,173.09,173.05,82.5]
[1748143856546,26.0,173.03,173.02,82.5]
[1748143856840,26.0,173.03,173.02,117.08]
[1748143857547,26.0,173.03,173.02,236.78]
[1748143858744,26.0,173.06,173.02,236.78]
[1748143858949,34.44035419,173.06,173.02,236.78]
[1748143860229,26.0,173.03,173.02,202.2]
[1748143860437,26.0,173.03,173.02,236.78]
[1748143860737,26.0,173.03,173.02,153.8]
[1748143861781,34.44035419,173.06,173.02,82.5]
[1748143861924,34.44035419,173.06,173.03,34.58]
[1748143865263,26.0,173.01,173.0,82.5]
[1748143865432,26.0,173.01,173.0,117.08]
[1748143866855,26.0,173.01,173.0,82.5]
[1748143867033,26.0,173.01,173.0,117.08]
[1748143867447,26.0,173.01,173.0,200.08]
[1748143867750,26.0,173.01,173.0,236.8]
[1748143868057,8.44035419,173.03,173.0,125.52035419]
[1748143868058,26.0,173.03,173.0,125.52035419]
[1748143868225,26.0,173.03,173.01,8.44035419]
[1748143868745,26.0,173.04,173.01,8.44035419]
[1748143869349,26.0,173.04,173.02,8.44035419]
[1748143869641,26.0,173.04,173.03,34.6]
[1748143870450,26.0,173.06,173.03,34.6]
[1748143870752,26.0,173.04,173.03,34.6]
[1748143871842,13.19211516,173.06,173.03,34.6]
[1748143871843,26.0,173.06,173.03,34.6]
[1748143872043,39.19211516,173.06,173.03,34.6]
[1748143873153,26.0,173.06,173.03,34.6]
[1748143873357,39.19211516,173.06,173.03,34.6]
[1748143873751,26.0,173.06,173.03,34.6]
[1748143873961,13.19211516,173.09,173.03,47.79211516]
[1748143874141,13.19211516,173.09,173.03,130.29211516]
[1748143874344,26.0,173.06,173.04,13.19211516]
[1748143874559,26.0,173.06,173.04,95.69211516]
[1748143874727,24.77874886,173.13,173.05,13.19211516]
[1748143875056,26.0,173.08,173.06,47.79211516]
[1748143875237,26.0,173.08,173.06,130.29211516]
[1748143875443,26.0,173.08,173.06,47.79211516]
[1748143875740,26.0,173.08,173.06,130.29211516]
[1748143875940,13.19211516,173.12,173.07,13.19211516]
[1748143876140,13.19211516,173.12,173.07,95.69211516]
[1748143876356,26.0,173.09,173.07,82.5]
[1748143876539,13.19211516,173.11,173.07,82.5]
[1748143877436,39.19211516,173.11,173.08,83.0]
[1748143877643,26.0,173.09,173.08,119.72]
[1748143877938,26.0,173.09,173.08,154.3]
[1748143879239,13.19211516,173.11,173.08,71.3]
[1748143879240,26.0,173.11,173.08,71.3]
[1748143879436,26.0,173.09,173.08,34.58]
[1748143883539,26.0,173.08,173.07,82.5]
[1748143883741,39.19211516,173.08,173.07,34.58]
[1748143883958,26.0,173.08,173.07,34.58]
[1748143887559,26.0,173.08,173.07,154.26]
[1748143888456,26.0,173.08,173.07,167.45211516]
[1748143888635,26.0,173.08,173.07,84.45211516]
[1748143890864,26.0,173.08,173.07,47.77211516]
[1748143891797,26.0,173.08,173.07,43.01837651]
[1748143892161,8.43837651,173.11,173.07,34.58]
[1748143892464,26.0,173.08,173.07,34.58]
[1748143892764,26.0,173.11,173.07,34.58]
[1748143892957,8.43837651,173.1,173.07,34.58]
[1748143896869,34.43837651,173.11,173.07,34.58]
[1748143897443,34.43837651,173.11,173.08,119.68]
[1748143898757,34.43837651,173.11,173.07,34.58]
[1748143900162,26.0,173.09,173.07,34.58]
[1748143907483,26.0,173.09,173.08,119.66]
[1748143907859,8.43837651,173.1,173.08,119.66]
[1748143908376,8.43925005,173.1,173.08,119.66]
[1748143909879,8.43925005,173.1,173.09,36.66]
[1748143912376,8.43925005,173.11,173.09,36.66]
[1748143914181,26.0,173.08,173.07,34.58]
[1748143916984,26.0,173.08,173.0,225.1033]
[1748143916985,34.43925005,173.08,173.0,225.1033]
[1748143917281,26.0,173.03,173.01,34.58]
[1748143917488,26.0,173.03,173.02,154.22]
[1748143917668,26.0,173.03,173.02,71.24]
[1748143917869,26.0,173.05,173.02,34.58]
[1748143918777,26.0,173.08,173.02,117.08]
[1748143919285,26.0,173.12,173.02,117.08]
[1748143919484,26.0,173.08,173.02,117.08]
[1748143921064,33.89916177,173.16,173.02,117.08]
[1748143921065,26.0,173.12,173.04,1.5909]
[1748143921265,8.43925005,173.16,173.04,90.7168]
[1748143921478,26.0,173.13,173.04,226.7168]
[1748143922072,26.0,173.15,173.05,3.26149039]
[1748143922275,26.0,173.13,173.05,3.26149039]
[1748143922683,8.43925005,173.16,173.06,18.64964886]
[1748143922868,8.43925005,173.16,173.07,34.58]
[1748143923070,26.0,173.13,173.07,39.28423228]
[1748143924501,26.0,173.13,173.07,42.20513388]
[1748143926698,8.43925005,173.15,173.07,42.20513388]
[1748143927585,8.43925005,173.15,173.08,119.64]
[1748143927781,8.43925005,173.15,173.08,202.14]
[1748143928189,26.0,173.11,173.08,202.14]
[1748143928996,8.43925005,173.09,173.06,82.5]
[1748143929183,8.43925005,173.09,173.07,34.58]
[1748143930074,26.0,173.08,173.07,34.58]
[1748143931406,26.0,173.08,173.04,90.7168]
[1748143931600,26.0,173.08,173.05,34.58]
[1748143932287,26.0,173.13,173.05,34.58]
[1748143932487,26.0,173.13,173.05,253.08]
[1748143932689,26.0,173.12,173.05,253.08]
[1748143932985,26.0,173.11,173.05,253.08]
[1748143933597,26.0,173.16,173.05,253.08]
[1748143933801,26.0,173.12,173.05,253.08]
[1748143934206,26.0,173.11,173.05,253.08]
[1748143937606,26.0,173.11,173.06,119.64]
[1748143938001,26.0,173.16,173.06,119.64]
[1748143938211,26.0,173.11,173.06,119.64]
[1748143938510,26.0,173.11,173.09,13.18001722]
[1748143938817,26.0,173.12,173.1,47.76001722]
[1748143938995,26.0,173.12,173.1,130.26001722]
[1748143943203,26.0,173.16,173.1,130.26001722]
[1748143943414,26.0,173.12,173.1,130.26001722]
[1748143944002,26.0,173.12,173.11,13.18001722]
[1748143944605,39.18001722,173.16,173.11,13.18001722]
[1748143944914,39.18001722,173.16,173.11,95.68001722]
[1748143945623,26.0,173.16,173.11,95.68001722]
[1748143945917,26.0,173.14,173.12,13.18001722]
[1748143946226,26.0,173.14,173.13,13.18001722]
[1748143946397,26.0,173.15,173.13,13.18001722]
[1748143946602,26.0,173.15,173.14,34.58]
[1748143947592,26.0,173.16,173.14,167.34001722]
[1748143947836,13.27480799,173.19,173.15,13.18001722]
[1748143948144,13.27480799,173.19,173.18,13.18001722]
[1748143948433,39.27480799,173.19,173.18,34.58]
[1748143948606,13.27480799,173.19,173.18,34.58]
[1748143948807,13.27480799,173.19,173.18,47.76001722]
[1748143949529,8.97500417,173.31,173.18,47.76001722]
[1748143949711,1.73236157,173.34,173.18,34.58]
[1748143949909,26.0,173.26,173.24,13.18001722]
[1748143950107,26.0,173.26,173.25,34.58]
[1748143950616,13.18001722,173.28,173.25,34.58]
[1748143951228,0.14216157,173.32,173.25,34.58]
[1748143951528,13.18001722,173.26,173.25,34.58]
[1748143953335,39.18001722,173.26,173.25,34.58]
[1748143953709,26.0,173.26,173.25,34.58]
[1748143954007,39.18001722,173.26,173.25,34.58]
[1748143954528,18.64964886,173.3,173.25,34.58]
[1748143954735,13.18001722,173.26,173.25,34.58]
[1748143957205,18.64964886,173.3,173.25,34.58]
[1748143957413,13.18001722,173.27,173.25,34.58]
[1748143957618,13.18001722,173.27,173.26,121.46]
[1748143958031,13.18001722,173.28,173.26,121.46]
[1748143958235,26.0,173.26,173.25,34.58]
[1748143959329,13.18001722,173.27,173.25,34.58]
[1748143959538,26.0,173.26,173.25,34.58]
[1748143959933,13.18001722,173.27,173.25,34.58]
[1748143960130,26.0,173.33,173.25,34.58]
[1748143960435,26.0,173.26,173.25,34.58]
[1748143960619,26.0,173.26,173.25,117.08]
[1748143965028,13.18001722,173.27,173.25,117.08]
[1748143965229,26.0,173.26,173.25,117.08]
[1748143965430,26.0,173.26,173.25,34.58]
[1748143965818,26.0,173.25,173.23,95.68001722]
[1748143966024,26.0,173.25,173.24,34.56]
[1748143967541,26.0,173.26,173.24,169.20001722]
[1748143967837,26.0,173.26,173.24,156.02]
[1748143968020,26.0,173.25,173.24,156.02]
[1748143968222,26.0,173.25,173.24,73.1]
[1748143968939,26.0,173.26,173.24,86.28001722]
[1748143969435,26.0,173.26,173.24,168.78001722]
[1748143969813,26.0,173.25,173.24,130.24001722]
[1748143972223,26.0,173.31,173.24,130.24001722]
[1748143972431,26.0,173.28,173.26,13.18001722]
[1748143972636,26.0,173.28,173.27,34.56]
[1748143974323,13.18001722,173.3,173.27,34.56]
[1748143974536,26.0,173.27,173.26,82.5]
[1748143974731,39.18001722,173.27,173.26,117.06]
[1748143975041,39.18001722,173.27,173.26,34.56]
[1748143975723,57.82966608,173.27,173.2,82.5]
[1748143976029,13.18001722,173.22,173.21,34.54]
[1748143976230,26.0,173.19,173.18,13.18001722]
[1748143976442,26.0,173.19,173.18,47.72001722]
[1748143977045,44.64964886,173.26,173.18,47.72001722]
[1748143977243,26.0,173.2,173.18,130.22001722]
[1748143977547,26.0,173.2,173.19,121.44]
[1748143979235,26.0,173.2,173.19,82.9]
[1748143979546,26.0,173.24,173.19,156.0]
[1748143979751,18.64964886,173.27,173.19,117.06]
[1748143979752,26.0,173.2,173.19,117.06]
[1748143980645,13.18001722,173.23,173.19,117.06]
[1748143980824,26.0,173.2,173.19,117.06]
[1748143981344,26.0,173.24,173.19,117.06]
[1748143981550,26.0,173.2,173.19,117.06]
[1748143982224,39.18001722,173.24,173.19,117.06]
[1748143982425,13.18001722,173.24,173.19,117.06]
[1748143982627,26.0,173.21,173.19,117.06]
[1748143983456,13.18001722,173.24,173.19,130.24001722]
[1748143983634,26.0,173.24,173.22,13.18001722]
[1748143983951,26.0,173.24,173.23,34.56]
[1748143984334,26.0,173.26,173.23,34.56]
[1748143984541,26.0,173.24,173.23,34.56]
[1748143984848,27.5352,173.28,173.23,34.56]
[1748143985038,13.18001722,173.26,173.23,34.56]
[1748143985547,13.18001722,173.29,173.24,13.18001722]
[1748143985934,13.18001722,173.29,173.24,95.68001722]
[1748143986477,26.0,173.3,173.24,95.68001722]
[1748143986629,39.18001722,173.3,173.25,13.18001722]
[1748143986829,39.18001722,173.3,173.26,34.56]
[1748143987230,13.18001722,173.3,173.26,34.56]
[1748143987556,39.18001722,173.31,173.27,121.38]
[1748143987734,26.0,173.31,173.27,38.46]
[1748143987934,39.18001722,173.31,173.27,38.46]
[1748143988360,39.18001722,173.31,173.26,130.24001722]
[1748143988856,26.0,173.33,173.26,130.24001722]
[1748143989038,13.18001722,173.31,173.26,130.24001722]
[1748143989440,26.0,173.28,173.27,34.56]
[1748143990337,26.0,173.27,173.26,82.5]
[1748143990542,26.0,173.27,173.26,117.06]
[1748143992028,13.18001722,173.3,173.26,117.06]
[1748143992670,26.0,173.31,173.26,130.24001722]
[1748143992855,39.18001722,173.31,173.26,130.24001722]
[1748143993654,26.0,173.31,173.26,130.24001722]
[1748143993859,39.18001722,173.31,173.26,130.24001722]
[1748143994358,26.0,173.27,173.26,82.5]
[1748143994546,26.0,173.27,173.26,117.04]
[1748143994955,26.0,173.31,173.26,117.04]
[1748143995146,26.0,173.27,173.26,117.04]
[1748143996463,26.0,173.33,173.26,117.04]
[1748143996641,13.18001722,173.31,173.26,130.22001722]
[1748143997267,26.0,173.33,173.26,130.22001722]
[1748143997571,13.18001722,173.31,173.27,121.34]
[1748143997761,13.18001722,173.31,173.27,38.44]
[1748143998165,13.18001722,173.31,173.26,130.22001722]
[1748143998343,26.0,173.29,173.27,13.18001722]
[1748143998668,26.0,173.29,173.27,82.5]
[1748143999862,26.0,173.28,173.27,82.5]
[1748144000067,39.18001722,173.28,173.27,117.04]
[1748144000440,13.18001722,173.29,173.27,117.04]
[1748144001742,13.18001722,173.28,173.27,117.04]
[1748144001943,26.0,173.31,173.27,34.54]
[1748144002241,13.18001722,173.28,173.27,34.54]
[1748144003748,13.18001722,173.28,173.21,13.18001722]
[1748144003955,26.0,173.23,173.22,34.54]
[1748144004155,26.0,173.23,173.22,117.04]
[1748144004542,26.0,173.23,173.22,34.54]
[1748144004955,26.0,173.21,173.2,82.5]
[1748144005165,26.0,173.21,173.2,117.04]
[1748144005959,26.0,173.2,173.19,82.5]
[1748144006146,26.0,173.2,173.19,34.54]
[1748144007370,26.0,173.2,173.17,13.18001722]
[1748144007558,26.0,173.17,173.15,95.68001722]
[1748144007749,26.0,173.17,173.16,34.54]
[1748144007948,26.0,173.17,173.16,47.72001722]
[1748144008145,26.0,173.18,173.16,34.54]
[1748144008350,26.0,173.17,173.15,13.18001722]
[1748144008552,39.18001722,173.17,173.11,7.6599]
[1748144008853,26.0,173.13,173.08,89.87349116]
[1748144009061,26.0,173.13,173.11,13.18001722]
[1748144009293,13.18001722,173.17,173.12,47.72001722]
[1748144009576,39.18001722,173.18,173.13,34.54]
[1748144010054,39.18001722,173.18,173.13,47.72001722]
[1748144010554,39.18001722,173.18,173.13,34.54]
[1748144010965,39.18001722,173.18,173.13,47.72001722]
[1748144012765,39.18001722,173.18,173.13,34.54]
[1748144013374,39.18001722,173.18,173.07,20.83991722]
[1748144013375,26.0,173.12,173.07,20.83991722]
[1748144013674,13.18001722,173.1,173.08,34.56]
[1748144013869,13.18001722,173.11,173.09,34.56]
[1748144014178,26.0,173.1,173.09,34.56]
[1748144015255,26.0,173.07,173.06,82.5]
[1748144015459,26.0,173.07,173.06,95.68001722]
[1748144015649,26.0,173.07,173.06,130.24001722]
[1748144017170,26.0,173.08,173.06,130.24001722]
[1748144017675,26.0,173.08,173.07,121.2]
[1748144019667,26.0,173.08,173.07,203.7]
[1748144020265,26.0,173.08,173.07,121.2]
[1748144020578,39.18001722,173.08,173.07,34.56]
[1748144020953,13.18001722,173.09,173.07,34.56]
[1748144021159,26.0,173.08,173.07,34.56]
[1748144022095,26.0,173.07,173.04,82.5]
[1748144022393,26.0,173.06,173.05,34.58]
[1748144024385,26.0,173.06,173.04,95.68001722]
[1748144024683,26.0,173.06,173.05,34.58]
[1748144025486,26.0,173.12,173.05,117.08]
[1748144025671,26.0,173.07,173.06,13.18001722]
[1748144025870,39.18001722,173.12,173.06,13.18001722]
[1748144026187,13.18001722,173.12,173.07,13.18001722]
[1748144026485,26.0,173.09,173.08,34.58]
[1748144027488,26.0,173.09,173.08,155.8]
[1748144028580,31.82966608,173.16,173.08,155.8]
[1748144028581,13.18001722,173.1,173.08,155.8]
[1748144030899,13.18001722,173.09,173.08,155.8]
[1748144031092,13.18001722,173.09,173.08,72.82]
[1748144031968,13.18001722,173.09,173.05,82.5]
[1748144032264,13.02488319,173.1,173.08,34.58]
[1748144033797,26.0,173.09,173.08,34.58]
[1748144035573,13.02488319,173.1,173.08,34.58]
[1748144037591,13.02488319,173.1,173.09,121.22]
[1748144037987,13.02488319,173.11,173.09,121.22]
[1748144039696,26.0,173.13,173.09,121.22]
[1748144040005,26.0,173.09,173.08,34.58]
[1748144040180,26.0,173.09,173.08,47.60488319]
[1748144040379,26.0,173.09,173.08,34.58]
[1748144047483,26.0,173.09,173.08,155.38]
[1748144049424,26.0,173.13,173.08,155.38]
[1748144049593,26.0,173.09,173.08,72.4]
[1748144049784,26.0,173.09,173.08,34.58]
[1748144052207,26.0,173.08,173.06,95.52488319]
[1748144052505,26.0,173.08,173.07,34.58]
[1748144052710,26.0,173.09,173.07,34.58]
[1748144054905,26.0,173.09,173.07,117.08]
[1748144055117,26.0,173.09,173.07,130.10488319]
[1748144056619,26.0,173.13,173.08,13.02488319]
[1748144056944,26.0,173.12,173.1,13.02488319]
[1748144057110,26.0,173.12,173.11,34.58]
[1748144057495,26.0,173.12,173.11,155.38]
[1748144059115,26.0,173.15,173.11,155.38]
[1748144059416,1.6306,173.17,173.11,155.38]
[1748144059417,26.0,173.12,173.11,155.38]
[1748144061794,26.0,173.12,173.11,34.58]
[1748144062093,13.02488319,173.13,173.11,34.58]
[1748144063002,13.02488319,173.12,173.11,34.58]
[1748144063606,39.02488319,173.13,173.11,34.58]
[1748144063897,39.02488319,173.13,173.09,82.5]
[1748144064207,13.02488319,173.12,173.1,34.58]
[1748144066602,26.0,173.13,173.1,34.58]
[1748144066808,1.6306,173.17,173.12,13.02488319]
[1748144067008,26.0,173.15,173.13,34.58]
[1748144067219,26.0,173.14,173.13,34.58]
[1748144067521,14.65548319,173.17,173.13,155.38]
[1748144067924,26.0,173.14,173.13,155.38]
[1748144069123,26.0,173.16,173.13,155.38]
[1748144069421,26.0,173.14,173.13,34.58]
[1748144072225,39.02488319,173.16,173.13,34.58]
[1748144073525,26.0,173.16,173.13,34.58]
[1748144073724,13.02488319,173.21,173.13,34.58]
[1748144073924,26.0,173.21,173.17,13.02488319]
[1748144074126,13.02488319,173.21,173.18,34.58]
[1748144074301,26.0,173.19,173.18,34.58]
[1748144074501,14.65308319,173.22,173.18,34.58]
[1748144074702,26.0,173.19,173.18,34.58]
[1748144075006,1.6282,173.22,173.18,34.58]
[1748144075405,26.0,173.19,173.18,34.58]
[1748144077535,26.0,173.19,173.18,158.36]
[1748144080315,26.0,173.19,173.18,34.58]
[1748144086224,39.02488319,173.21,173.18,34.58]
[1748144086426,35.81788319,173.21,173.18,34.58]
[1748144087620,35.81788319,173.21,173.19,123.76]
[1748144088319,39.02488319,173.21,173.19,123.76]
[1748144089126,39.00745218,173.21,173.19,123.76]
[1748144089739,26.0,173.21,173.19,123.76]
[1748144089932,39.00745218,173.21,173.19,40.82]
[1748144092547,39.00745218,173.21,173.2,34.56]
[1748144093743,34.32476726,173.21,173.2,34.56]
[1748144094945,8.32476726,173.22,173.2,34.56]
[1748144095129,34.32476726,173.23,173.2,34.56]
[1748144097750,34.32476726,173.23,173.21,123.76]
[1748144098052,34.32476726,173.23,173.21,40.82]
[1748144098253,34.32476726,173.23,173.2,34.56]
[1748144098641,8.32476726,173.21,173.2,34.56]
[1748144099150,26.0,173.17,173.11,82.5]
[1748144099340,26.0,173.13,173.12,34.56]
[1748144099529,26.0,173.12,173.07,90.0118]
[1748144099730,26.0,173.11,173.08,34.56]
[1748144099940,17.0109,173.11,173.08,117.06]
[1748144100548,13.0178854,173.15,173.09,34.56]
[1748144100753,13.0178854,173.15,173.09,117.06]
[1748144101935,26.0,173.12,173.09,117.06]
[1748144102361,19.6962,173.12,173.09,117.06]
[1748144104159,13.0178854,173.16,173.09,117.06]
[1748144104357,26.0,173.13,173.09,117.06]
[1748144104561,22.7929,173.13,173.09,117.06]
[1748144106061,19.5858,173.13,173.09,117.06]
[1748144107552,19.5858,173.13,173.1,122.74]
[1748144109168,26.0,173.17,173.1,122.74]
[1748144109370,26.0,173.13,173.1,39.78]
[1748144109571,26.0,173.13,173.09,117.06]
[1748144110364,26.0,173.12,173.09,117.06]
[1748144110554,26.0,173.12,173.09,82.5]
[1748144110866,26.0,173.12,173.1,34.56]
[1748144111271,26.0,173.11,173.1,34.56]
[1748144114071,22.4921,173.11,173.1,34.56]
[1748144114557,22.4921,173.11,173.07,82.5]
[1748144114874,22.4921,173.11,173.08,34.56]
[1748144115249,22.4921,173.11,173.07,82.5]
[1748144115449,22.4921,173.11,173.08,34.56]
[1748144116070,26.0,173.1,173.08,34.56]
[1748144117258,26.0,173.12,173.08,34.56]
[1748144117462,26.0,173.12,173.09,122.74]
[1748144117780,26.0,173.12,173.09,39.78]
[1748144119663,26.0,173.13,173.08,34.56]
[1748144119871,13.0178854,173.16,173.08,117.06]
[1748144120259,26.0,173.13,173.08,117.06]
[1748144120574,13.0178854,173.16,173.08,117.06]
[1748144121181,26.0,173.13,173.08,117.06]
[1748144127585,26.0,173.13,173.09,122.74]
[1748144129377,26.0,173.18,173.1,8.0437]
[1748144129561,8.33007254,173.17,173.1,90.5437]
[1748144131382,8.33007254,173.16,173.1,90.5437]
[1748144131690,26.0,173.13,173.1,90.5437]
[1748144132474,26.0,173.12,173.1,82.5]
[1748144132675,26.0,173.12,173.11,34.58]
[1748144133986,26.0,173.13,173.11,34.58]
[1748144137588,26.0,173.13,173.12,122.74]
[1748144139591,34.33007254,173.17,173.12,39.78]
[1748144139790,34.33007254,173.17,173.11,117.08]
[1748144139980,34.33007254,173.18,173.11,117.08]
[1748144140178,26.0,173.16,173.11,117.08]
[1748144140377,34.33007254,173.19,173.11,117.08]
[1748144141695,26.0,173.19,173.11,117.08]
[1748144141880,34.33007254,173.19,173.11,117.08]
[1748144142392,26.0,173.19,173.11,117.08]
[1748144142699,1.6023,173.25,173.12,7.5783]
[1748144143001,26.0,173.2,173.12,90.0783]
[1748144143574,8.33007254,173.23,173.13,0.14216157]
[1748144143989,26.0,173.2,173.13,0.14216157]
[1748144144289,26.0,173.19,173.12,90.0783]
[1748144147490,26.0,173.19,173.13,121.76]
[1748144148794,26.0,173.19,173.13,38.82]
[1748144149180,26.0,173.19,173.13,121.32]
[1748144149696,26.0,173.19,173.13,82.5]
[1748144150487,26.0,173.21,173.13,82.5]
[1748144151195,39.00674797,173.24,173.13,82.5]
[1748144152000,13.00674797,173.23,173.13,82.5]
[1748144153191,26.0,173.24,173.13,82.5]
[1748144153382,13.00674797,173.23,173.13,82.5]
[1748144157521,13.00674797,173.23,173.14,121.76]
[1748144159714,13.00674797,173.23,173.14,38.82]
[1748144159905,12.94674797,173.23,173.15,34.56]
[1748144161118,26.0,173.19,173.15,117.06]
[1748144162039,26.0,173.2,173.15,117.06]
[1748144162518,26.0,173.24,173.15,117.06]
[1748144162730,26.0,173.22,173.15,117.06]
[1748144163521,26.0,173.23,173.15,117.06]
[1748144164722,13.00674797,173.26,173.15,117.06]
[1748144165023,26.0,173.23,173.15,117.06]
[1748144165320,26.0,173.23,173.16,18.64964886]
[1748144167618,26.0,173.23,173.17,121.72]
[1748144168418,26.0,173.22,173.17,121.72]
[1748144169828,26.0,173.23,173.17,204.22]
[1748144170009,26.0,173.23,173.17,121.3]
[1748144170518,34.31985911,173.27,173.17,82.5]
[1748144170704,26.0,173.16,173.12,7.5783]
[1748144171030,26.0,173.16,173.13,34.56]
[1748144171414,26.0,173.18,173.13,34.56]
[1748144171925,26.0,173.19,173.13,34.56]
[1748144173430,26.0,173.2,173.14,18.64964886]
[1748144174013,26.0,173.23,173.14,18.64964886]
[1748144174212,13.00335273,173.26,173.14,18.64964886]
[1748144174727,26.0,173.22,173.14,18.64964886]
[1748144175435,39.00335273,173.26,173.14,18.64964886]
[1748144177539,39.00335273,173.26,173.15,122.76]
[1748144178415,39.00335273,173.26,173.15,39.84]
[1748144178618,13.00335273,173.25,173.14,18.64964886]
[1748144178821,26.0,173.22,173.15,82.5]
[1748144180442,26.0,173.21,173.15,82.5]
[1748144180616,26.0,173.2,173.16,34.56]
[1748144181037,13.00335273,173.2,173.15,82.5]
[1748144181234,26.0,173.16,173.15,82.5]
[1748144181548,13.00335273,173.16,173.12,82.5]
[1748144181846,26.0,173.17,173.15,34.56]
[1748144182033,13.00335273,173.16,173.15,34.56]
[1748144182547,26.0,173.12,173.02,8.3168238]
[1748144182841,26.0,173.04,173.03,34.56]
[1748144183238,26.0,173.05,173.03,34.56]
[1748144183539,13.00335273,173.12,173.03,34.56]
[1748144183540,26.0,173.04,173.03,34.56]
[1748144185325,26.0,173.04,172.97,1.5484]
[1748144185656,26.0,173.04,172.98,34.56]
[1748144186445,26.0,173.03,172.98,34.56]
[1748144187335,26.0,173.03,172.97,1.5484]
[1748144187535,26.0,173.03,172.99,34.56]
[1748144188142,18.64964886,173.11,172.99,34.56]
[1748144188143,26.0,173.08,172.99,34.56]
[1748144188321,26.0,173.03,172.99,117.06]
[1748144188933,26.0,173.04,172.99,117.06]
[1748144190565,39.00335273,173.08,172.99,117.06]
[1748144191057,26.0,173.08,172.99,117.06]
[1748144191259,8.2182,173.16,173.0,18.64964886]
[1748144191457,13.00335273,173.14,173.0,18.64964886]
[1748144191766,13.00335273,173.17,173.02,18.64964886]
[1748144192118,26.0,173.15,173.03,1.6001]
[1748144192231,26.0,173.14,173.05,18.64964886]
[1748144192428,26.0,173.13,173.05,18.64964886]
[1748144193162,26.0,173.11,173.04,34.58]
[1748144193363,13.00335273,173.14,173.04,117.08]
[1748144193660,26.0,173.11,173.04,117.08]
[1748144193830,13.00335273,173.11,173.04,117.08]
[1748144194031,13.00335273,173.1,173.04,117.08]
[1748144194259,13.00335273,173.1,173.04,34.58]
[1748144195054,26.0,173.06,173.04,34.58]
[1748144196159,26.0,173.05,173.04,34.58]
[1748144196557,24.1099,173.05,173.04,34.58]
[1748144197461,24.1099,173.05,173.04,117.56]
[1748144197762,13.00335273,173.08,173.04,157.44]
[1748144198557,26.0,173.05,173.04,39.88]
[1748144198761,26.0,173.05,173.04,74.46]